Cogmind - Beta 17 @@@ ROGUE MODE // 2026.07.08 @ 11:06:32 Player: OBLIQUE Result: Escaped! Performance ------------- Evolutions (9) 4500 Regions Visited (14) 2800 Robots Destroyed (121) 605 Value Destroyed (5796) 5796 Prototype IDs (51) 1020 Alien Tech Used (0) 0 Bonus (6169) 6169 TOTAL SCORE: 20890 Bonus ------- High Alert Combat Kills 227 Follower Combat Kills 2642 Aligned with FarCom 300 Win 3000 Cogmind --------- Core Integrity 1381/1600 Matter 260/300 Energy 1130/1150 System Corruption 0% Temperature Cool (8) Movement Treading (145) Location To Epsilon Eridani Parts ------- > --- POWER (5) -------- Light Ion Engine Light Antimatter Reactor Reinforced Antimatter Reactor Particle Reactor Light Quantum Reactor > --- PROPULSION (4) --- Advanced Heavy Treads Advanced Heavy Treads > --- UTILITY (14) ----- Large Storage Unit Improved Energy Well Structural Scanner Terrain Scanner Experimental Core Analyzer Advanced Phase Shifter Layered Light Armor Plating Graphene Brace System Shield Advanced System Restoration Module Advanced System Restoration Module Long-range Tractor Beam > --- WEAPON (2) ------- Enhanced Hardcell Cannon Improved Plasma Cutter > --- INVENTORY (15) --- Advanced Heavy Treads Thermal Defense Suite Improved Remote Shield Improved Remote Force Field Compact HERF Cannon Enhanced Nova Cannon KE Penetrator KE Penetrator KE Penetrator Hardcell Cannon Advanced Remote Datajack Improved Plasma Cutter Peak State ------------ > --- POWER ------------ Improved Fusion Compressor Particle Reactor Micro Antimatter Reactor Quantum Reactor > --- PROPULSION ------- Armored Heavy Treads Advanced Heavy Treads > --- UTILITY ---------- Advanced Heat Sink Advanced Heat Sink Advanced Coolant Injector Advanced Coolant Injector Large Storage Unit Experimental Signal Interpreter Experimental Core Analyzer Quantum Capacitor Layered Heavy Armor Plating Graphene Brace Advanced Focal Shield > --- WEAPON ----------- Compact HERF Cannon Improved Matter Neutralizer > --- INVENTORY -------- Advanced Heavy Treads Advanced Heavy Treads Advanced Heavy Treads Thermal Defense Suite Improved Remote Shield Improved Remote Force Field Compact HERF Cannon Enhanced Nova Cannon Hardcell Cannon Advanced Remote Datajack Improved Plasma Cutter Improved Plasma Cutter [Rating: 175] Favorites ----------- Power Cooled Ion Engine Engine Cooled Ion Engine Power Core Micro Fission Core Reactor Cold Fusion Reactor Propulsion Compact Wheel Treads Armored Treads Leg Aluminum Leg Wheel Compact Wheel Hover Unit Gyrokinetic Inverter Utility Large Storage Unit Device Advanced Coolant Injector Storage Large Storage Unit Processor Improved System Guard Hackware Hacking Suite Protection Light Regenerative Plating Weapon Precision Beam Rifle Energy Gun Precision Beam Rifle Energy Cannon Compact Ion Cannon Ballistic Gun Railgun Ballistic Cannon Hardcell Cannon Launcher Mini Grenade Launcher Special Weapon Improved Plasma Cutter Slashing Weapon Plasma Sword Build | -11 -10 -10 -10 -9 -8 -8 -7 -6 -6 -5 -4 -3 -2 -1 ------- Run | Yrd Mat Min Exi Min Mat Sto Fac Fac Ext Fac Fac Res Res Acc Slots Evolved 18 | . . . . . 4 . 2 2 . 2 2 2 2 2 Power 4 | . . . . . . . 1 . . 1 1 . . 1 Propulsion 2 | . . . . . . . . . . . 1 . 1 . Utility 12 | . . . . . 4 . 1 2 . 1 . 2 1 1 Weapon . | . . . . . . . . . . . . . . . Parts Attached 179 | 8 1 . 1 . 3 11 17 15 9 9 54 13 17 21 Power 29 | 1 . . . . . 1 3 1 2 1 12 1 3 4 Engine 12 | 1 . . . . . 1 3 1 2 1 2 . . 1 Core 3 | . . . . . . . . . . . 2 1 . . Reactor 14 | . . . . . . . . . . . 8 . 3 3 Propulsion 33 | 4 . . . . . . 3 2 1 2 9 3 7 2 Treads 6 | . . . . . . . 2 . . . . . 2 2 Leg 5 | 2 . . . . . . . . . . . 1 2 . Wheel 18 | 2 . . . . . . 1 2 1 2 9 1 . . Hover 4 | . . . . . . . . . . . . 1 3 . Flight . | . . . . . . . . . . . . . . . Utility 83 | 1 1 . 1 . 2 4 6 9 6 4 26 8 5 10 Device 53 | . . . . . 1 1 3 6 3 3 22 4 4 6 Storage 7 | 1 . . 1 . 1 . 1 . 1 . . 1 . 1 Processor 7 | . . . . . . 1 . . 1 . 2 1 1 1 Hackware 7 | . . . . . . 1 . 2 . . 2 1 . 1 Protection 9 | . 1 . . . . 1 2 1 1 1 . 1 . 1 Artifact . | . . . . . . . . . . . . . . . Weapon 34 | 2 . . . . 1 6 5 3 . 2 7 1 2 5 Energy Gun 11 | 2 . . . . 1 3 2 . . . 3 . . . Energy Cannon 10 | . . . . . . 2 . 3 . . 1 1 1 2 Ballistic Gun 5 | . . . . . . 1 1 . . . 3 . . . Ballistic Cannon 3 | . . . . . . . 1 . . . . . . 2 Launcher 3 | . . . . . . . 1 . . 2 . . . . Special Weapon 1 | . . . . . . . . . . . . . . 1 Impact Weapon . | . . . . . . . . . . . . . . . Slashing Weapon 1 | . . . . . . . . . . . . . 1 . Piercing Weapon . | . . . . . . . . . . . . . . . Special Melee Weapon . | . . . . . . . . . . . . . . . Unidentified Prototypes 22 | . . . . . 1 8 4 . . . 4 1 3 1 Corrupted Parts 1 | . . . . . . . 1 . . . . . . . System Corruption 3 | . . . . . . . 3 . . . . . . . Parts Lost 75 | . . . . . . . 9 2 4 15 19 12 . 14 Power 16 | . . . . . . . 1 . . 3 5 4 . 3 Propulsion 13 | . . . . . . . 2 . 1 3 2 3 . 2 Utility 36 | . . . . . . . 3 1 3 7 10 5 . 7 Weapon 10 | . . . . . . . 3 1 . 2 2 . . 2 Highest Loss Streak 13 | . . . . . . . 5 1 3 13 5 11 . 12 To Critical Strikes 1 | . . . . . . . . . 1 . . . . . Average Backups 10 | 1 3 4 5 3 3 9 9 9 12 12 13 13 13 11 Power 3 | . 1 1 1 . . 3 5 5 5 5 2 . . . Propulsion . | 1 2 2 2 2 . . . . . 1 . . 1 2 Utility 4 | . . 1 1 1 1 1 2 3 6 4 6 7 5 3 Weapon 1 | . . . . . 1 3 1 . 1 1 2 3 3 3 Tool/Special . | . . . . . . . . . . . . . . . Unused Backups 41 | . . . 4 . . 10 2 1 . 1 7 . 8 8 Power 12 | . . . 3 . . 6 1 . . 1 1 . . . Propulsion 3 | . . . . . . . . . . . 1 . 1 1 Utility 10 | . . . . . . 1 . 1 . . 3 . 4 1 Weapon 11 | . . . 1 . . 2 . . . . 2 . 2 4 Tool/Special 5 | . . . . . . 1 1 . . . . . 1 2 Average Slot Usage (%) 85 | . 98 100 100 100 62 89 95 67 68 98 94 87 74 70 Engine 8 | . 14 14 14 14 9 9 14 10 13 16 3 . . 1 Core 1 | . . . . . . . . . . . 3 3 4 2 Reactor 4 | . . . . . . . . . . . 11 9 6 12 Treads 1 | . . . . . . . . 7 . . . . 2 8 Leg 2 | . 28 28 28 28 . . . . . . . . 3 . Wheel 9 | . . . . . 17 18 13 5 11 10 12 8 1 . Device 24 | . . . . . 8 10 21 21 20 33 39 28 29 25 Storage 9 | . 14 14 20 28 18 18 14 6 7 10 5 5 5 4 Processor 2 | . . . . . . . . . . 5 3 8 4 4 Hackware 3 | . . . . . . 8 6 1 . . 1 9 2 . Protection 3 | . 12 14 7 . . 8 6 6 . 4 . . 4 2 Energy Gun 4 | . 28 28 28 28 9 8 6 . . . 3 . . . Energy Cannon 4 | . . . . . . . . 7 13 1 4 4 5 5 Ballistic Gun 2 | . . . . . . 7 6 . . . 2 4 . . Peak Build Rating 175 | 6 7 7 12 12 19 40 63 88 88 67 112 130 175 173 Average Rating 75 | 4 6 7 9 12 17 32 46 66 82 64 94 113 137 145 On Entrance 46 | . 6 7 7 12 12 18 38 34 88 60 28 105 105 173 Avg Prop Armor Cover (%) 2 | . . . . . . . . . . . . 4 2 . Naked Turns . | . . . . . . . . . . . . . . . Heaviest Build 142 | 13 16 16 16 15 34 46 100 142 142 84 113 112 130 133 Greatest Support 140 | 20 20 20 20 20 20 20 40 40 32 32 42 26 130 140 Greatest Overweight (x) 33 | . . . . . 1 2 33 4 8 2 9 7 7 . Average Overweight (x) 2 | . . . . . . 1 2 2 4 2 2 3 1 . Largest Inventory Capacity 15 | 8 8 8 8 8 15 15 15 15 15 15 15 15 15 15 Average Capacity 14 | 6 8 8 8 8 12 15 15 15 15 15 15 15 15 15 Most Carried 15 | 3 4 5 8 8 10 15 15 15 14 15 15 15 15 15 Average Carried 12 | 1 3 4 7 8 8 14 14 12 12 12 13 13 14 12 Final Capacity 15 | 8 8 8 8 8 15 15 15 15 15 15 15 15 15 15 Final Carried 15 | 3 4 5 8 8 10 15 15 14 10 11 15 15 15 13 Class Distribution -------------------- 29% | Mutant 23% | Commander-Mutant 21% | Scavenger-Mutant 14% | Generator-Mutant 7% | Generator-Skirmisher Dominant Class ---------------- Mutant | -10/Materials Mutant | -10/Mines Mutant | -10/Exiles Mutant | -9/Mines Mutant | -8/Materials Mutant | -8/Storage Commander-Mutant | -7/Factory Scavenger-Mutant | -6/Factory Commander-Mutant | -6/Extension Commander-Mutant | -5/Factory Generator-Mutant | -4/Factory Generator-Skirmisher | -3/Research Mutant | -2/Research Generator-Mutant | -1/Access Resources | -11 -10 -10 -10 -9 -8 -8 -7 -6 -6 -5 -4 -3 -2 -1 ----------- Run | Yrd Mat Min Exi Min Mat Sto Fac Fac Ext Fac Fac Res Res Acc Matter Collected 3533 | 276 14 . . 6 50 214 346 279 115 284 724 533 210 482 Remotely 51 | . . . . . . . . . . . . . . 51 Salvage Created 6282 | . 35 48 . . 43 145 418 477 207 507 2024 704 410 1264 Parts 266 | . 3 5 . . 3 6 26 27 6 17 100 23 16 34 Haulers Intercepted 2 | . . . . . 1 . 1 . . . . . . . Recyclers Shooed 13 | . . . . . . 1 2 1 2 1 1 3 1 1 Parts Field Recycled . | . . . . . . . . . . . . . . . Retrieved Matter . | . . . . . . . . . . . . . . . Parts Self-Destructed . | . . . . . . . . . . . . . . . Prevented . | . . . . . . . . . . . . . . . Parts Restored . | . . . . . . . . . . . . . . . Kills | -11 -10 -10 -10 -9 -8 -8 -7 -6 -6 -5 -4 -3 -2 -1 ------- Run | Yrd Mat Min Exi Min Mat Sto Fac Fac Ext Fac Fac Res Res Acc Combat Hostiles Destroyed 87 | . 3 3 . . . 3 5 7 1 7 28 10 4 16 Melee 1 | . . . . . . . . 1 . . . . . . Guns 28 | . 3 3 . . . 3 3 . . . 11 5 . . Cannons 42 | . . . . . . . . 6 1 . 15 4 4 12 AOE 12 | . . . . . . . 2 . . 7 1 . . 2 Classes Destroyed 12 | . 1 . . . 1 2 4 2 . . 1 . . 1 Worker 15 | . . . . . . . 2 1 . 4 6 2 . . Builder 4 | . . . . . . . 1 . . 1 2 . . . Hauler 2 | . . . . . 1 . 1 . . . . . . . Recycler 9 | . . . . . . . . 1 1 2 1 2 1 1 Watcher 4 | . . . . . . . . . . . 1 . 1 2 Swarmer 13 | . 3 3 . . . . . . . . 4 3 . . Grunt 24 | . . . . . . . 2 1 . 6 5 2 . 8 Brawler 1 | . . . . . . . . . . . . . . 1 Duelist 2 | . . . . . . . 1 1 . . . . . . Sentry 11 | . . . . . . 2 2 1 1 . 2 1 . 2 Hunter 10 | . . . . . . 1 . . . . 4 . 2 3 Programmer 26 | . . . . . . . . 4 . 1 13 4 2 2 Best Kill Streak 13 | . 3 3 . . 1 1 2 2 1 5 6 7 2 13 Combat Bots Only 13 | . 3 3 . . . 1 2 2 1 4 4 6 2 13 Max Kills in Single Turn 4 | . 1 1 . . 1 1 2 1 1 4 2 1 1 1 Gunslinging . | . . . . . . . . . . . . . . . Exploded 2 | . . . . . . . 2 . . 2 1 . . 1 Melee 1 | . . . . . . . . 1 . . . . . . Uniques/NPCs Destroyed . | . . . . . . . . . . . . . . . Combat | -11 -10 -10 -10 -9 -8 -8 -7 -6 -6 -5 -4 -3 -2 -1 -------- Run | Yrd Mat Min Exi Min Mat Sto Fac Fac Ext Fac Fac Res Res Acc Hostile Shots Fired 1230 | . 6 6 . . 1 15 114 172 52 89 361 127 33 254 Missed 341 | . 2 4 . . 1 5 38 58 16 29 100 27 9 52 Hits 889 | . 4 2 . . . 10 76 114 36 60 261 100 24 202 Melee 1 | . . . . . . . . 1 . . . . . . Projectile 888 | . 4 2 . . . 10 76 113 36 60 261 100 24 202 AOE 17 | . . . . . . . . . 2 12 3 . . . Critical Strikes 52 | . . . . . . 1 5 6 3 2 11 11 1 12 Actively Blocked 36 | . . . . . . . . 3 . . 9 11 1 12 Part Disruptions 2 | . . . . . . . . . . . 1 1 . . Damage Taken 14397 | . 31 15 . . . 142 1606 1110 903 1442 2840 1723 318 4267 Core 1795 | . 6 9 . . . 28 370 130 132 156 436 254 55 219 Absorbed by Shields 3009 | . . . . . . . 204 376 179 181 1476 395 54 144 Reduced by Siege Mode 572 | . . . . . . . . . . . . . . 572 Redirected to Shielding 26 | . . . . . . . . 26 . . . . . . Ignored by Resistances 1260 | . . . . . . . . . . . 695 206 119 240 Regen/Repaired (Parts) 310 | . . . . . . . 238 13 . 29 30 . . . Core Remaining (%) 81 | 100 . . . 94 . 94 47 . 69 84 62 80 96 86 Volleys Fired 532 | . 5 3 . . 11 30 36 42 39 19 144 77 33 93 Largest 2 | . 2 2 . . 1 2 2 2 2 2 2 2 1 2 Hottest 175 | . 90 90 . . 61 86 97 175 175 120 171 148 113 149 Shots Fired 756 | . 10 6 . . 11 41 72 53 52 26 254 102 33 96 Gun 307 | . 10 6 . . 11 41 71 . . . 123 45 . . Cannon 430 | . . . . . . . . 53 52 8 131 57 33 96 Launcher 19 | . . . . . . . 1 . . 18 . . . . Special . | . . . . . . . . . . . . . . . Kinetic 190 | . . . . . . 21 35 . . . 49 45 . 40 Thermal 513 | . 10 6 . . 11 20 36 53 52 8 197 57 31 32 Explosive 19 | . . . . . . . 1 . . 18 . . . . Electromagnetic 34 | . . . . . . . . . . . 8 . 2 24 Robot Hit Streak 18 | . 6 2 . . 4 12 9 9 5 14 15 18 16 18 Robot Miss Streak 5 | . 1 1 . . 5 2 2 4 2 2 5 1 3 2 Penetration Max 2 | . . . . . . . 1 . . . 2 1 . . Secondary Targets 1 | . . 1 . . . . . . . . . . . . Max Gunslinging Chain 1 | . . 1 . . . . . . . . . . . . Capacitor 76 | . . . . . . . . . . . . . 27 49 Shots Hit Robots 443 | . 7 4 . . 5 20 44 28 16 20 147 61 17 74 Core Hits 255 | . 3 3 . . 1 5 20 16 6 57 70 25 9 40 Critical Kills 2 | . . . . . . . . . . . . 1 . 1 Critical Parts Destroyed 1 | . . . . . . . . . . . 1 . . . Critical Strikes 15 | . . 1 . . . 2 4 . . . 2 1 . 5 Burn 8 | . . 1 . . . 2 4 . . . 1 . . . Meltdown 2 | . . . . . . . . . . . . 1 . 1 Destroy 1 | . . . . . . . . . . . 1 . . . Blast 4 | . . . . . . . . . . . . . . 4 Melee Attacks . | . . . . . . . . . . . . . . . Impact . | . . . . . . . . . . . . . . . Slashing . | . . . . . . . . . . . . . . . Piercing . | . . . . . . . . . . . . . . . Sneak Attacks . | . . . . . . . . . . . . . . . Combat Hostiles . | . . . . . . . . . . . . . . . Follow-up Attacks . | . . . . . . . . . . . . . . . Damage Inflicted 17313 | . 82 49 . . 100 345 1137 882 586 2580 4685 2330 738 3799 Guns 4842 | . 82 49 . . 100 345 885 . . . 2300 1081 . . Cannons 9010 | . . . . . . . . 863 576 192 2332 1249 738 3060 Explosions 3411 | . . . . . . . 248 . . 2378 53 . . 732 Melee . | . . . . . . . . . . . . . . . Ramming 50 | . . . . . . . 4 19 10 10 . . . 7 Kinetic 3929 | . . . . . . 118 389 . . . 1025 1081 . 1316 Thermal 9237 | . 82 49 . . 100 227 496 863 576 219 3423 1249 670 1283 Explosive 2954 | . . . . . . . 248 . . 2351 . . . 355 Electromagnetic 1143 | . . . . . . . . . . . 237 . 68 838 Impact . | . . . . . . . . . . . . . . . Slashing . | . . . . . . . . . . . . . . . Piercing . | . . . . . . . . . . . . . . . Highest Corruption 6 | . . . . . . . 3 4 6 4 4 1 2 5 Average Corruption 2 | . . . . . . . 3 3 4 2 1 1 1 3 Corruption Purged 10 | . . . . . . . . . . . . 5 . 5 Corruption Blocked . | . . . . . . . . . . . . . . . Effects 71 | . . . . . . . 1 15 25 5 11 1 10 3 Message Errors 18 | . . . . . . . . 5 7 1 3 . 1 1 Matter Fused 16 | . . . . . . . 1 5 4 1 2 . 2 1 Heat Flow Errors 10 | . . . . . . . . 1 5 1 1 . 2 . Energy Discharges 8 | . . . . . . . . 2 3 . 1 . 2 . Parts Rejected 1 | . . . . . . . . . . . . . . 1 Data Loss (minor) 9 | . . . . . . . . 1 2 1 2 1 2 . Data Loss (major) 3 | . . . . . . . . . 1 . 1 . 1 . Misfires 4 | . . . . . . . . 1 2 . 1 . . . Alerts 2 | . . . . . . . . . 1 1 . . . . Overload Shots . | . . . . . . . . . . . . . . . Overflow Damage 197 | . . . . . . . . 11 2 8 82 28 19 47 Projectiles 189 | . . . . . . . . 11 2 . 82 28 19 47 Explosions 8 | . . . . . . . . . . 8 . . . . Melee . | . . . . . . . . . . . . . . . Knockbacks 11 | . . . . . . . . . . . . . . 11 Impact . | . . . . . . . . . . . . . . . Kinetic 11 | . . . . . . . . . . . . . . 11 Secondary . | . . . . . . . . . . . . . . . Self-Inflicted Damage 286 | . . . . . . . 45 . 5 5 21 . . 210 Shots 4 | . . . . . . . 1 . . . 1 . . 2 Rammed 10 | . . . . . . . 1 5 1 2 . . . 1 Targets Rammed 12 | . . . . 1 . . 1 6 1 2 . . . 1 Kicked 1 | . . . . 1 . . . . . . . . . . Crushed 1 | . . . . . . . . 1 . . . . . . Highest Temperature 572 | . 156 117 . . 24 109 240 224 294 176 424 198 198 572 Average Temperature 96 | . 68 60 . . 12 31 71 86 76 46 96 86 93 167 Received Heat Transfer 1689 | . . . . . . 63 193 159 199 200 313 52 . 510 Effects 20 | . . . . . . . . . 1 . . . . 19 Shutdowns 6 | . . . . . . . . . . . . . . 6 Energy Bleed 3 | . . . . . . . . . . . . . . 3 Interference 5 | . . . . . . . . . 1 . . . . 4 Matter Decay 1 | . . . . . . . . . . . . . . 1 Damage (minor) 2 | . . . . . . . . . . . . . . 2 Damage (major) 3 | . . . . . . . . . . . . . . 3 Siege Activations 2 | . . . . . . . . . . . . . . 2 Total Turns 85 | . . . . . . . . . . . . . . 85 Longest Duration 69 | . . . . . . . . . . . . . . 69 Martial Activations . | . . . . . . . . . . . . . . . Shielding Activations . | . . . . . . . . . . . . . . . Robots Disrupted . | . . . . . . . . . . . . . . . Combat Hostiles . | . . . . . . . . . . . . . . . Robots Corrupted 1 | . . . . . . . . . . . . . . 1 Combat Hostiles 1 | . . . . . . . . . . . . . . 1 Parts Fried 7 | . . . . . . . . . . . . . 2 5 Impact Corruptions . | . . . . . . . . . . . . . . . Robots Melted 3 | . . . . . . . . . . . 1 1 . 1 Combat Hostiles 3 | . . . . . . . . . . . 1 1 . 1 Parts Melted 34 | . . 1 . . . 3 2 1 . . 20 5 2 . Heat Transferred 12042 | . 223 198 . . 185 629 1332 1184 731 262 4482 1073 592 1151 Parts Sabotaged . | . . . . . . . . . . . . . . . Parts Stolen . | . . . . . . . . . . . . . . . Parts Stripped . | . . . . . . . . . . . . . . . Power Chain Reactions 1 | . . . . . . . . . . . . . . 1 Alert | -11 -10 -10 -10 -9 -8 -8 -7 -6 -6 -5 -4 -3 -2 -1 ------- Run | Yrd Mat Min Exi Min Mat Sto Fac Fac Ext Fac Fac Res Res Acc Maximum Alert Level 3 | . . . . . . . 1 1 3 3 2 1 . 1 Low Security (%) 58 | 100 100 100 . 100 100 100 64 98 38 . . 87 100 45 Level 1 30 | . . . . . . . 35 1 38 11 79 12 . 54 Level 2 8 | . . . . . . . . . 18 62 20 . . . Level 3 1 | . . . . . . . . . 3 26 . . . . Level 4 . | . . . . . . . . . . . . . . . Level 5 . | . . . . . . . . . . . . . . . High Security . | . . . . . . . . . . . . . . . Max Security . | . . . . . . . . . . . . . . . Peak Influence 914 | . 90 85 . . 15 144 289 203 770 914 497 254 72 306 Initial 377 | . . 15 . . . . . 105 86 377 341 254 21 . Average 180 | . 21 74 . . 2 25 134 93 294 583 345 81 14 146 Influence Increases 6474 | . 119 70 . . 50 373 831 537 1390 985 1020 345 163 591 Destroy 0b10 Robot/C 3100 | . 60 60 . . . 140 380 260 660 380 560 200 80 320 Destroy 0b10 Robot/NC 210 | . . . . . 15 15 30 10 5 40 50 20 10 15 Destroy Leader 652 | . 10 10 . . 6 52 94 80 70 82 132 30 22 64 Allied During Kill 1178 | . . . . . 3 88 204 81 517 285 . . . . Successful Hack 285 | . 19 . . . 10 47 81 40 34 9 2 43 . . Disable Machine 315 | . . . . . 15 30 15 . 60 45 90 . 15 45 Destroy Structure 554 | . . . . . 1 1 27 21 44 144 126 52 36 102 Partial Spotted 15 | . . . . . . . . . . . 15 . . . Lose Combat Pursuer 165 | . 30 . . . . . . 45 . . 45 . . 45 Influence Decreases 6235 | . 79 35 75 . 50 371 617 577 796 1057 1233 792 200 353 Entered New Map 1302 | . . 25 75 . . . 2 111 90 393 357 231 17 1 Time Decay 3498 | . 79 10 . . 50 199 405 425 466 334 686 449 183 212 Lost Part 742 | . . . . . . . 90 20 40 150 190 112 . 140 Lost Ally 561 | . . . . . . 40 120 21 200 180 . . . . Purge Threat 132 | . . . . . . 132 . . . . . . . . Squads Dispatched 46 | . . . . . . 3 6 4 4 6 11 6 4 2 Investigation 7 | . . . . . . 2 . . 2 1 . . 2 . Extermination 20 | . . . . . . . 4 3 . 1 6 3 2 1 Reinforcement 11 | . . . . . . . 2 1 1 2 4 . . 1 Assault 3 | . . . . . . . . . 1 1 1 . . . Garrison 5 | . . . . . . 1 . . . 1 . 3 . . Intercept . | . . . . . . . . . . . . . . . Searches Triggered . | . . . . . . . . . . . . . . . Construction Impeded 3 | . . . . . . . . . . 1 1 . . 1 Haulers Reinforced 1 | . . . . . . . . . . 1 . . . . Active Scanning Responses . | . . . . . . . . . . . . . . . Cargo Convoy Interrupts 1 | . . . . . . . 1 . . . . . . . Stealth | -11 -10 -10 -10 -9 -8 -8 -7 -6 -6 -5 -4 -3 -2 -1 --------- Run | Yrd Mat Min Exi Min Mat Sto Fac Fac Ext Fac Fac Res Res Acc Distress Signals 17 | . 1 . . . 1 . 2 1 1 4 4 1 1 1 Communications Jammed . | . . . . . . . . . . . . . . . Distress Signals . | . . . . . . . . . . . . . . . Times Spotted 222 | . 6 2 . . 5 8 28 21 33 32 43 19 6 19 Peak Tracking Total 14 | . 4 2 . . 3 2 4 4 6 9 5 5 3 14 Tactical Retreats 7 | . 1 . . . . . . 3 . . 2 . . 1 Traps | -11 -10 -10 -10 -9 -8 -8 -7 -6 -6 -5 -4 -3 -2 -1 ------- Run | Yrd Mat Min Exi Min Mat Sto Fac Fac Ext Fac Fac Res Res Acc Traps Triggered 2 | . . . . . . . . . 1 . 1 . . . Indirectly . | . . . . . . . . . . . . . . . Trap Hack Attempts . | . . . . . . . . . . . . . . . Triggered . | . . . . . . . . . . . . . . . Disarmed . | . . . . . . . . . . . . . . . Reprogrammed . | . . . . . . . . . . . . . . . Reused . | . . . . . . . . . . . . . . . Traps Extracted . | . . . . . . . . . . . . . . . Installed . | . . . . . . . . . . . . . . . Triggered . | . . . . . . . . . . . . . . . Machines | -11 -10 -10 -10 -9 -8 -8 -7 -6 -6 -5 -4 -3 -2 -1 ---------- Run | Yrd Mat Min Exi Min Mat Sto Fac Fac Ext Fac Fac Res Res Acc Machines Disabled 21 | . . . . . 1 2 1 . 4 3 6 . 1 3 Max in Single Turn 2 | . . . . . . 1 1 . 2 2 1 . 1 1 Garrison Access 3 | . . . . . . 1 . . . 1 . 1 . . Energy Cycler 1 | . . . . . . . . . 1 . . . . . Machines Repaired . | . . . . . . . . . . . . . . . Machines Dismantled 2 | . . . . . . . . . . . . . . 2 Machines Sabotaged . | . . . . . . . . . . . . . . . Overloaded Fab Kills . | . . . . . . . . . . . . . . . Hacking | -11 -10 -10 -10 -9 -8 -8 -7 -6 -6 -5 -4 -3 -2 -1 --------- Run | Yrd Mat Min Exi Min Mat Sto Fac Fac Ext Fac Fac Res Res Acc Machines Accessed 68 | . 2 . 1 . 1 11 16 8 6 5 6 5 6 1 Terminals 42 | . 2 . . . 1 10 10 3 6 1 3 2 4 . Fabricators 5 | . . . . . . . 1 1 . 1 1 . 1 . Repair Stations 5 | . . . . . . . 1 1 . 1 1 . . 1 Recycling Units 3 | . . . . . . . 2 . . . . 1 . . Scanalyzers 6 | . . . . . . . 1 1 . 1 1 1 1 . Garrison Access 6 | . . . . . . 1 1 2 . 1 . 1 . . Total Hacks 178 | . 7 . 1 . 6 34 38 18 12 15 22 12 11 2 Successful 88 | . 5 . 1 . 3 21 15 7 6 10 14 6 . . Failed 89 | . 2 . . . 3 13 23 11 6 4 8 6 11 2 Catastrophic 23 | . 1 . . . 1 2 3 4 2 2 4 1 3 . Database Lockouts 1 | . . . . . . . . . . 1 . . . . Manual 58 | . 5 . 1 . 5 14 13 5 5 1 4 3 2 . Terminals 109 | . 7 . . . 6 33 25 7 12 1 4 7 7 . Fabricators 11 | . . . . . . . 3 2 . 2 2 . 2 . Repair Stations 11 | . . . . . . . 2 3 . 2 2 . . 2 Recycling Units 6 | . . . . . . . 4 . . . . 2 . . Scanalyzers 30 | . . . . . . . 2 3 . 7 14 2 2 . Garrison Access 10 | . . . . . . 1 2 3 . 3 . 1 . . Terminal Hacks 39 | . 3 . 1 . 2 18 6 2 4 . . 3 . . Part Schematic 3 | . . . . . . 2 . . . . . 1 . . Robot Schematic 1 | . . . . . . . 1 . . . . . . . Robot Analysis 1 | . . . . . . 1 . . . . . . . . Prototype ID Bank 3 | . . . . . . 1 . . 1 . . 1 . . Open Door 5 | . . . . . . 3 . . 2 . . . . . Level Access Points 2 | . . . . . . 1 1 . . . . . . . Branch Access Points 2 | . . . . . . . 1 . . . . 1 . . Emergency Access Points 3 | . . . . . . 2 . 1 . . . . . . Terminal Index 1 | . . . . . . 1 . . . . . . . . Alert Level 3 | . 1 . . . . 2 . . . . . . . . Unreport Threat 1 | . . . . . . 1 . . . . . . . . Locate Traps 5 | . 1 . . . 1 1 . 1 1 . . . . . Dispatch Records 1 | . . . . . . 1 . . . . . . . . Patrol Status 1 | . 1 . . . . . . . . . . . . . Registered Components 1 | . . . . . . 1 . . . . . . . . Zone Layout 5 | . . . . . 1 1 3 . . . . . . . Proto ID Catalog 1 | . . . 1 . . . . . . . . . . . Fabricator Hacks 3 | . . . . . . . 1 . . 2 . . . . Network Status 2 | . . . . . . . 1 . . 1 . . . . Build 1 | . . . . . . . . . . 1 . . . . Repair Station Hacks 8 | . . . . . . . 2 2 . 2 2 . . . Scan Component 4 | . . . . . . . 1 1 . 1 1 . . . Repair 4 | . . . . . . . 1 1 . 1 1 . . . Recycling Unit Hacks 3 | . . . . . . . 2 . . . . 1 . . Report Inventory 1 | . . . . . . . 1 . . . . . . . Retrieve Matter 1 | . . . . . . . . . . . . 1 . . Retrieve Components 1 | . . . . . . . 1 . . . . . . . Scanalyzer 20 | . . . . . . . . 2 . 5 12 1 . . Insert Component 4 | . . . . . . . . . . 1 3 . . . Analyze 3 | . . . . . . . . . . 1 2 . . . Retrieve Study 13 | . . . . . . . . 2 . 3 7 1 . . Garrison Access Hacks 3 | . . . . . . 1 . . . 1 . 1 . . Seal Access 3 | . . . . . . 1 . . . 1 . 1 . . Unauthorized Hacks 12 | . 2 . . . 1 2 4 1 2 . . . . . Terminals 11 | . 2 . . . 1 2 3 1 2 . . . . . Track 1 | . . . . . . . 1 . . . . . . . Assimilate 1 | . . . . . . . 1 . . . . . . . Botnet 8 | . 1 . . . 1 2 1 1 2 . . . . . Operators 1 | . 1 . . . . . . . . . . . . . Fabricators . | . . . . . . . . . . . . . . . Repair Stations . | . . . . . . . . . . . . . . . Recycling Units 1 | . . . . . . . 1 . . . . . . . Monitor 1 | . . . . . . . 1 . . . . . . . Scanalyzers . | . . . . . . . . . . . . . . . Garrison Access . | . . . . . . . . . . . . . . . Data Cores Recovered 1 | . . . . . . 1 . . . . . . . . Used . | . . . . . . . . . . . . . . . Hacking Detections 59 | . 2 . . . 1 7 15 8 4 5 6 4 6 1 Full Trace Events 6 | . . . . . . 1 . . 2 1 . . 2 . Feedback Events . | . . . . . . . . . . . . . . . Feedback Blocked . | . . . . . . . . . . . . . . . Robot Schematics Acquired 1 | . . . . . . . 1 . . . . . . . Robots Built 2 | . . . . . . . . . . 2 . . . . Authchips . | . . . . . . . . . . . . . . . Time 81 | . . . . . . . . . . 81 . . . . Total Robot Build Rating 2 | . . . . . . . . . . 2 . . . . Part Schematics Acquired 5 | . . . . . . 2 . . . . 2 1 . . Parts Built . | . . . . . . . . . . . . . . . Authchips . | . . . . . . . . . . . . . . . Time . | . . . . . . . . . . . . . . . Total Part Build Rating . | . . . . . . . . . . . . . . . Part Studies Acquired 13 | . . . . . . . . 2 . 3 7 1 . . Parts Repaired 4 | . . . . . . . 1 1 . 1 1 . . . Time 153 | . . . . . . . 22 19 . 50 62 . . . Parts Recycled . | . . . . . . . . . . . . . . . Recycled Matter . | . . . . . . . . . . . . . . . Retrieved Matter . | . . . . . . . . . . . . . . . Retrieved Components 10 | . . . . . . . 10 . . . . . . . Parts Scanalyzed 4 | . . . . . . . . . . 1 3 . . . Part Schematics Acquired 2 | . . . . . . . . . . . 2 . . . Parts Damaged 1 | . . . . . . . . . . . 1 . . . Bothacking | -11 -10 -10 -10 -9 -8 -8 -7 -6 -6 -5 -4 -3 -2 -1 ------------ Run | Yrd Mat Min Exi Min Mat Sto Fac Fac Ext Fac Fac Res Res Acc Used RIF Installer . | . . . . . . . . . . . . . . . Robots Hacked . | . . . . . . . . . . . . . . . Non-combat . | . . . . . . . . . . . . . . . Combat . | . . . . . . . . . . . . . . . Robot Hacks Applied . | . . . . . . . . . . . . . . . Relay Couplers Released . | . . . . . . . . . . . . . . . Fabnet Peak Effective % . | . . . . . . . . . . . . . . . Robots Rewired 15 | . . . . . . . . . 15 . . . . . Allies Hacked 1 | . . . . . . . 1 . . . . . . . Hacks Repelled . | . . . . . . . . . . . . . . . Allies | -11 -10 -10 -10 -9 -8 -8 -7 -6 -6 -5 -4 -3 -2 -1 -------- Run | Yrd Mat Min Exi Min Mat Sto Fac Fac Ext Fac Fac Res Res Acc Total Allies 34 | . . . . 3 . 10 1 . 18 2 . . . . Largest Group 12 | . . . . 3 3 10 8 1 12 10 . . . . Highest-Rated Group 373 | . . . . 40 40 173 141 9 373 275 . . . . Highest-Rated Ally 39 | . . . . 16 16 29 29 9 39 39 . . . . Total Orders 24 | . . . . . . 2 1 7 14 . . . . . STAY 1 | . . . . . . 1 . . . . . . . . FOLLOW 1 | . . . . . . 1 . . . . . . . . EXPLORE 3 | . . . . . . . . 3 . . . . . . RETURN 19 | . . . . . . . 1 4 14 . . . . . Ally Attacks 631 | . . . . . 26 29 131 81 249 115 . . . . Total Damage 10180 | . . . . . 217 362 1594 1146 5064 1797 . . . . Kills 83 | . . . . . 2 7 17 6 37 14 . . . . Allies Corrupted . | . . . . . . . . . . . . . . . Allies Melted . | . . . . . . . . . . . . . . . Intel | -11 -10 -10 -10 -9 -8 -8 -7 -6 -6 -5 -4 -3 -2 -1 ------- Run | Yrd Mat Min Exi Min Mat Sto Fac Fac Ext Fac Fac Res Res Acc Active Infowar (turns) 9692 | . . . . . . 267 2353 1495 1298 756 1897 724 517 385 Optics 100 | . . . . . . 100 . . . . . . . . Sensors 1241 | . . . . . . . . . . . . 724 517 . Terrain 385 | . . . . . . . . . . . . . . 385 Structural 640 | . . . . . . . . . . . 261 . . 379 Traps 6871 | . . . . . . 167 2353 600 1182 756 1813 . . . Triangulation 2339 | . . . . . . . . 1400 192 747 . . . . Jamming 90 | . . . . . . . . . . 90 . . . . Robot Analysis Total 1 | . . . . . . 1 . . . . . . . . Derelict Logs Recovered 1 | . . . . 1 . . . . . . . . . . Drone Launches 112 | . . . . . . . 12 43 57 . . . . . Drone Recoveries 94 | . . . . . . . 11 39 44 . . . . . Exploration | -11 -10 -10 -10 -9 -8 -8 -7 -6 -6 -5 -4 -3 -2 -1 ------------- Run | Yrd Mat Min Exi Min Mat Sto Fac Fac Ext Fac Fac Res Res Acc Turns Passed 14421 | 78 325 27 259 421 260 902 2442 1908 1298 756 2746 1298 826 875 Spaces Moved 7391 | 63 119 15 211 322 212 394 1510 820 498 457 1476 598 412 284 Core 16 | 6 . . . . . . 10 . . . . . . . Treads 817 | . . . . . . . 11 401 . . . . 121 284 Legs 852 | 40 119 15 211 322 3 . . . . . . . 142 . Wheels 5649 | 17 . . . . 209 394 1489 419 498 457 1476 598 92 . Hover 57 | . . . . . . . . . . . . . 57 . Flight . | . . . . . . . . . . . . . . . Fastest Speed 50 | 50 120 120 120 120 80 95 105 160 130 120 110 100 100 145 Average Speed 136 | 102 120 120 120 120 89 106 127 193 168 123 124 132 162 149 Slowest Speed 1700 | 120 120 120 120 120 120 110 1700 290 220 130 205 175 250 157 Overloaded Moves . | . . . . . . . . . . . . . . . Propulsion Burnouts . | . . . . . . . . . . . . . . . Robots Hopped . | . . . . . . . . . . . . . . . Potential Cave-ins 9 | . . . . . . . . . 9 . . . . . Cave-ins Triggered 1 | . . . . . . . . . 1 . . . . . Exploration Rate (%) 31 | 3 33 9 62 70 16 49 50 29 66 14 39 16 13 7 Regions Visited 14 Branch Regions 5 Pre-discovered Areas 1 | . . . . 1 . . . . . . . . . . Known Exits Taken 3 | . . . . . . 1 1 . . . . 1 . . Unknown Exits Taken 11 | 1 1 1 1 1 1 . . 1 1 1 1 . 1 . Scrap Searched 2 | . . . . 2 . . . . . . . . . . Spaces Dug 94 | . . . . . . . . 8 24 . 28 24 4 6 Terrain Destroyed 299 | . . . . . . . 25 13 37 85 60 30 12 37 Melee . | . . . . . . . . . . . . . . . Projectile 158 | . . . . . . . . 13 29 1 60 30 12 13 AOE 141 | . . . . . . . 25 . 8 84 . . . 24 Terrain Rammed . | . . . . . . . . . . . . . . . Walls Destroyed . | . . . . . . . . . . . . . . . Machines Disabled . | . . . . . . . . . . . . . . . Actions | -11 -10 -10 -10 -9 -8 -8 -7 -6 -6 -5 -4 -3 -2 -1 --------- Run | Yrd Mat Min Exi Min Mat Sto Fac Fac Ext Fac Fac Res Res Acc Total 11021 | 73 290 18 219 356 272 856 1963 1079 904 621 2142 1001 570 657 Wait 2463 | . 165 . . 34 33 380 376 153 227 119 374 302 66 234 Move 7376 | 62 118 14 210 321 211 393 1509 819 496 457 1475 597 411 283 Hop . | . . . . . . . . . . . . . . . Pick Up 111 | 1 1 1 3 . 4 17 6 11 3 8 37 4 12 3 Fast Attach 122 | 8 1 . . . 3 12 12 16 4 4 25 8 14 15 Attach 58 | . . . . . . 1 4 7 5 6 21 7 3 4 Detach 37 | 2 . . . . 3 4 4 6 . 2 8 3 5 . Swap 51 | . . . 1 . 2 . 3 5 2 2 28 3 3 2 Drop 113 | . . . 5 . 5 19 12 14 2 3 30 . 23 . Fire 532 | . 5 3 . . 11 30 36 42 39 19 144 77 33 93 Melee . | . . . . . . . . . . . . . . . Ram 3 | . . . . . . . 1 . 1 1 . . . . Kick 1 | . . . . 1 . . . . . . . . . . Crush 7 | . . . . . . . . 6 . . . . . 1 Escape Stasis 9 | . . . . . . . . . 9 . . . . . Rewire 116 | . . . . . . . . . 116 . . . . . Trap . | . . . . . . . . . . . . . . . Miscellaneous 22 | . . . . . . . . . . . . . . 22 Route ------- -11/Scrapyard -10/Materials -10/Mines -10/Exiles -9/Mines -8/Materials -8/Storage -7/Factory (discovered 6 exits: *Fac x4 / Low x2) -6/Factory -6/Extension (discovered 2 exits: *Fac / [*Cet]) -5/Factory -4/Factory -3/Research (discovered 4 exits: *Res / Arm / Qua x2) -2/Research -1/Access To Epsilon Eridani History --------- Turn | Location | Event 16 | -11/Scrapyard | Discovered new exit (range 14) 79 | -11/Scrapyard | Entered Materials 304 | -10/Materials | Build established: Mutant 398 | -10/Materials | Discovered new exit (range 6) 404 | -10/Materials | Entered Mines 410 | -10/Mines | Met a Derelict bent on vengeance 426 | -10/Mines | Deemed a non-threat by the Exiles lab entrance 426 | -10/Mines | Discovered new exit (range 5) 431 | -10/Mines | Entered Exiles 468 | -10/Exiles | Met 8R-AWN 486 | -10/Exiles | Met EX-HEX 521 | -10/Exiles | Met EX-BIN 535 | -10/Exiles | Aligned with FarCom system 537 | -10/Exiles | Given EX-Vault access code 564 | -10/Exiles | Opened EX-Vault 577 | -10/Exiles | Found Army-in-a-Box 602 | -10/Exiles | Warned to stay clear of 0b10 Research branches 636 | -10/Exiles | Met EX-DEC 681 | -10/Exiles | Discovered new exit (range 10) 690 | -10/Exiles | Left Exiles lab with Army-in-a-Box 690 | -10/Exiles | Entered Mines 742 | -9/Mines | Learned location of Storage (-8) 904 | -9/Mines | A weapon hastily lodged in a ceiling crevice suddenly fell to the ground 1050 | -9/Mines | Assisted by bots powering up and referring to "LRC-V3" 1098 | -9/Mines | Discovered new exit (range 4) 1111 | -9/Mines | Entered Materials 1111 | -8/Materials | Accompanied by 3 allies 1111 | -8/Materials | Evolved 4 slots: Utility x4 1114 | -8/Materials | Discovered new exit (range 12) 1371 | -8/Materials | Entered Storage 1371 | -8/Storage | Accompanied by 1 ally 1448 | -8/Storage | Found Prototype Protection 1448 | -8/Storage | Identified Lgt. Regenerative Plating 1974 | -8/Storage | Identified exit to Factory 1977 | -8/Storage | Assisted by bots powering up and referring to "LRC-V3" 2161 | -8/Storage | Garrison activated, responded to threat 2231 | -8/Storage | Build established: Commander-Mutant 2273 | -8/Storage | Entered Factory 2273 | -7/Factory | Accompanied by 8 allies 2273 | -7/Factory | Evolved 2 slots: Power x1, Utility x1 2955 | -7/Factory | Cargo convoy interrupted 3187 | -7/Factory | Repaired Remote Datajack 3421 | -7/Factory | Identified exit to Lower Caves 3475 | -7/Factory | Found Powered Armor 3613 | -7/Factory | P-60 Hacker assimilated allied Soldier 3a 4193 | -7/Factory | Build established: Mutant 4394 | -7/Factory | Identified exit to Factory 4584 | -7/Factory | Lost 4 parts (2n2u) 4628 | -7/Factory | Core integrity fell below 50% 4658 | -7/Factory | Lost 5 parts (1p1u3w) 4715 | -7/Factory | Entered another Factory area 4715 | -6/Factory | Accompanied by 1 ally 4715 | -6/Factory | Evolved 2 slots: Utility x2 4997 | -6/Factory | Build established: Scavenger-Mutant 5231 | -6/Factory | Lost 3 allies 6469 | -6/Factory | Repaired Trap Scanner 6604 | -6/Factory | Discovered new exit (range 13) 6623 | -6/Factory | Entered Extension 6890 | -6/Extension | Build established: Mutant 6936 | -6/Extension | Rescued a captive Derelict 7204 | -6/Extension | Rescued a captive Derelict 7393 | -6/Extension | Crushed by falling debris 7435 | -6/Extension | Energy Cycler disabled 7436 | -6/Extension | Rescued a captive Derelict 7442 | -6/Extension | Rescued a captive Derelict 7478 | -6/Extension | Lost 3 allies 7546 | -6/Extension | Build established: Commander-Mutant 7673 | -6/Extension | First assault squad dispatched 7772 | -6/Extension | Lost 3 parts (3u) 7800 | -6/Extension | Lost 9 allies 7844 | -6/Extension | Discovered new exit (range 10) 7845 | -6/Extension | Discovered new exit (range 6) 7921 | -6/Extension | Entered Factory 7921 | -5/Factory | Accompanied by 9 allies 7921 | -5/Factory | Evolved 2 slots: Power x1, Utility x1 8125 | -5/Factory | Repaired Remote Shield 8217 | -5/Factory | Central database locked down 8316 | -5/Factory | Fabricated T-07 Excavator? 8521 | -5/Factory | First assault squad dispatched 8535 | -5/Factory | Spotted B-75 Beast 8550 | -5/Factory | Allies destroyed B-75 Beast 8576 | -5/Factory | Discovered new exit (range 13) 8610 | -5/Factory | Lost 3 allies 8677 | -5/Factory | Entered another Factory area 8677 | -4/Factory | Evolved 2 slots: Power x1, Propulsion x1 8684 | -4/Factory | Lost 6 allies 8703 | -4/Factory | Lost 13 parts (3p3n6u1w) 8983 | -4/Factory | Lost 3 parts (3u) 9073 | -4/Factory | Build established: Generator-Mutant 9212 | -4/Factory | Lost 3 parts (1p2w) 9476 | -4/Factory | Build established: Scavenger-Mutant 10190 | -4/Factory | Build established: Generator-Mutant 10269 | -4/Factory | Lost 5 parts (3p2u) 10425 | -4/Factory | Found Prototype Processor 10425 | -4/Factory | Identified Exp. Signal Interpreter 10430 | -4/Factory | Found Exp. Signal Interpreter 10688 | -4/Factory | Spotted B-86 Titan 11177 | -4/Factory | First assault squad dispatched 11347 | -4/Factory | Repaired Adv. Power Amplifier 11415 | -4/Factory | Discovered new exit (range 7) 11423 | -4/Factory | Entered Research 11423 | -3/Research | Evolved 2 slots: Utility x2 11712 | -3/Research | Build established: Generator-Skirmisher 12147 | -3/Research | Identified exit to Armory 12147 | -3/Research | Identified exit to Quarantine 12297 | -3/Research | Garrison activated, responded to threat 12370 | -3/Research | Lost 11 parts (4p2n5u) 12641 | -3/Research | Build established: Scavenger-Mutant 12699 | -3/Research | Discovered new exit (range 6) 12707 | -3/Research | Identified exit to Research 12721 | -3/Research | Entered another Research area 12721 | -2/Research | Evolved 2 slots: Propulsion x1, Utility x1 12736 | -2/Research | Found Quantum Capacitor 13229 | -2/Research | Build established: Mutant 13505 | -2/Research | Found Prototype Processor 13505 | -2/Research | Identified Exp. Core Analyzer 13542 | -2/Research | Discovered new exit (range 4) 13547 | -2/Research | Entered Access 13547 | -1/Access | Evolved 2 slots: Power x1, Utility x1 13795 | -1/Access | Build established: Generator-Mutant 14022 | -1/Access | Lost 12 parts (2p2n6u2w) 14042 | -1/Access | Destroyed 13 combat bots 14416 | -1/Access | Discovered new exit (range 5) 14422 | *** | Escaped! Last Messages --------------- 14230_ Adv. System Restoration Module purges 1% system corruption (1%). 14245_ Adv. System Restoration Module purges 1% system corruption (0%). 14248_ Overheating: Energy bleed (-120). 14273_ Power failure, Lgt. Antimatter Reactor+ shutdown. 14285_ Acquired System Shield. 14297_ Acquired Prototype Storage. 14297_ Identified Imp. Energy Well. 14304_ Connecting with Repair Station... 14304_ Current location identified: Access 14361_ Connecting with Terminal... 14367_ Dismantling Sealed Barrier with Imp. Plasma Cutter. 14397_ Sealed Barrier dismantled. 14406_ Dismantling Main Access Shell with Imp. Plasma Cutter. 14416_ Main Access Shell dismantled. 14416_ EXIT=FOUND Map ----- +----------------------------------------------------+ | ?????????????????????????????????????????????????? | | ?????????????????????????????????????????????????? | | ?????????????????????????????????????????????????? | | ?????????????????????????????????????????????????? | | ?????????????????????????????????????????????????? | | ?????????????????????????????????????????????????? | | ?????????????????????????????????????????????????? | | ?????????????????????????????????????????????????? | | ?????????????????????????????????????????????????? | | ?????????????????????????????????????????????????? | | ?????????????????????????????????????????????????? | | ?????????????????????????????????????????????????? | | ?????????????????????????????????????????????????? | | ??????????????????????????? ?????????????????????? | | ?????????????????????BB????BB????????????????????? | | ?????????????????????BB????BB????????????????????? | | ?????????????????????????????????????????????????? | | ?????????????????????????????????????????????????? | | ???????????????????#?????????????????????????????? | | ??????????????????##"?????????#??????????????????? | | ??????????????????##"""???????#??????????????????? | | ??????????????????## ??????????????????????????? | | ??????????????????## """"""?????????????????????? | | ??????????????????## " "????????????????????#? | | ?????????? ???????## " "" "? ##?????????????????? | | ??????????????????## "@ "? ##?????????????????? | | ??????????????????## "? ##????????????#??##? | | ??????????????????## """"" ##???????########### | | ??????????????????## ##????#??########### | | ?????????? ???#???## ##???#???## """"" | | ??????????????????#""" """"""#???????## ""R"" | | ??????????????????##"" ##???#???## " " | | ??????????????????##"" ##???#???## | | ??????????????#???##"" ##???????## | | ??????????#???????##T ###???#?### | | ?????????????#????##"" ##??#????## | | ??????????????#??###"" ########### | | ?????????????????###"" ###############+#### | | ?????????????? | | ???????????? | | ????????????#######################+############## | | ????????????##################### ######### | | ???????????????????????????????## # ??## | | ??????????????????????#?#??????## # #### | | ????????????????????????????#??## # #### | | ???????????????????????????????## # + | | ???????????????????????????????## # #### | | ???????????????????????????????## # #### | | ???????????????????????????????## # ! #### | | ???????????????????????????????## # ?### | +----------------------------------------------------+ Best States ------------- Heat Dissipation 90 Coolant Potential 200 Energy Generation 101 Energy Capacity 1150 Matter Stores 300 Matter Capacity 300 Sight Range 18 Robot Scan Range 16 Terrain Scan Range 14 Terrain Scan Density 85 Jamming Range 12 Power Amplification 60 Base Temperature (-) 150 EM Shielding 2 Corruption Containment 12 Armor Coverage 1200 Resistance: KI 30 Resistance: TH 20 Resistance: EM 25 Power Shielding 66 Phase Shifting 15 Evasion (%) 55 Launcher Accuracy 20 Core Analysis 8 Recoil Reduction 4 Matter Filtering 30 Energy Filtering 30 Offensive Hacking 14 Defensive Hacking 22 Item Schematics ----------------- Deuterium Engine | -8/Storage | Hacked F-cell Engine | -8/Storage | Hacked Adv. Shield Generator | -4/Factory | Scanalyzed Thermal Defense Suite | -4/Factory | Scanalyzed Adv. Remote Force Field | -3/Research | Hacked Robot Schematics ------------------ T-07 Excavator | -7/Factory | Hacked Fabricated ------------ T-07 Excavator | x2 | -5/Factory | Preloaded Repaired ---------- Remote Datajack | 77% | -7/Factory Trap Scanner | 35% | -6/Factory Remote Shield | 42% | -5/Factory Adv. Power Amplifier | 3% | -4/Factory Studied --------- Arm. Treads | -6/Factory | Hacked Imp. Deuterium Engine | -6/Factory | Hacked Com. Wheel | -5/Factory | Hacked Mni. Grenade Launcher | -5/Factory | Hacked Hvy. Rocket Launcher | -5/Factory | Hacked Railgun | -4/Factory | Hacked Lgt. Antimatter Reactor | -4/Factory | Hacked Neutrino Core | -4/Factory | Hacked Mic. Fission Core | -4/Factory | Hacked Wheel | -4/Factory | Hacked Hardcell Cannon | -4/Factory | Hacked Hvy. Phase Cannon | -4/Factory | Hacked Antimatter Reactor | -3/Research | Hacked Alien Tech Used ----------------- None Achievements -------------- None Challenges ------------ None Game ------ Seed QuantumMultinovaMatrix Manual? 0 Play Time 02:59:26 Cumulative 154.9 hours Start 2026.07.07 @ 11:28:53 End 2026.07.08 @ 11:06:32 Sessions 7 Manual Loads 0 Difficulty Rogue Special Mode None Game No. 88 Rogue 88 Adventurer 0 Explorer 0 Win Type 0 Total 3 Types 3/0/0/0/0/0/0/0/0/0 Lore% 67 Gallery% 60 Achievement% 51 Wizard Run 0 Options --------- Layout 1 ASCII 0 Keyboard 0 Movement Numpad Keybinds 0 Fullscreen 1 Font 24/Smallcaps Map View 50x35 Zoom Use 0% Tactical HUD 1 Map Filters NONE Filters NONE Steam 1 RUN: 5d26fcd2-9cea-428f-acb2-1cbe9d37ee75